[Event "12th National Amateur Chess-ch 2025"]
[Site "Bihar"]
[Date "2025.03.28"]
[Round "7.14"]
[White "Marium Fatima"]
[Black "Chinnam Vyshnavi"]
[Result "1-0"]
[Annotator "NA RC"]
[ECO "D11"]
[WhiteElo "1881"]
[BlackElo "1793"]
[PlyCount "119"]
[EventDate "2025.03.25"]
[EventCountry "IND"]
[SourceTitle "playchess.com"]
[Source "ChessBase"]
[SourceQuality "1"]
[TimeControl "5400+30"]

1. d4 {[%emt 0:00:02]} d5 {[%emt 0:00:27]} 2. c4 {[%emt 0:00:07]} c6 {[%emt 0:00:14]} 3. g3 {[%emt 0:01:07]} Nf6 {[%emt 0:00:36]} 4. Bg2 {[%emt 0:00:40]} h6 {[%emt 0:04:50]} 5. Nf3 {[%emt 0:01:51]} Bf5 {[%emt 0:00:21]} 6. O-O {[%emt 0:00:37]} e6 {[%emt 0:00:09]} 7. Nc3 {[%emt 0:00:57]} Be7 {[%emt 0:00:20]} 8. Qb3 {[%emt 0:01:45]} Qb6 {[%emt 0:00:15]} 9. c5 {[%emt 0:00:05]} Qxb3 {[%emt 0:00:04]} 10. axb3 {[%emt 0:00:03]} O-O {[%emt 0:00:13]} 11. b4 {[%emt 0:00:03]} a6 {[%emt 0:00:32]} 12. h3 {[%emt 0:02:31]} Nbd7 {[%emt 0:00:07]} 13. g4 {[%emt 0:00:05]} Bh7 {[%emt 0:00:03]} 14. Bf4 {[%emt 0:00:06]} g5 {[%emt 0:00:07]} 15. Bg3 {[%emt 0:00:10]} h5 {[%emt 0:13:17]} 16. Nxg5 {[%emt 0:01:35]} hxg4 {[%emt 0:00:07]} 17. hxg4 {[%emt 0:02:02]} Nxg4 {[%emt 0:00:16]} 18. Nxh7 {[%emt 0:00:11]} Kxh7 {[%emt 0:00:02]} 19. Bf3 {[%emt 0:01:50]} Rg8 {[%emt 0:00:44]} 20. Kg2 {[%emt 0:00:24]} Rg6 {[%emt 0:00:29]} 21. Rh1+ {[%emt 0:01:02]} Kg7 {[%emt 0:00:09]} 22. b5 {[%emt 0:07:17]} cxb5 {[%emt 0:06:11]} 23. Nxb5 {[%emt 0:00:24]} Rg8 {[%emt 0:00:08]} 24. Nc3 {[%emt 0:00:32]} Nb8 {[%emt 0:09:13]} 25. Bxg4 {[%emt 0:03:50]} Rxg4 {[%emt 0:00:09]} 26. Kf3 {[%emt 0:00:09]} f5 {[%emt 0:01:03]} 27. Bxb8 {[%emt 0:02:43]} Rxb8 {[%emt 0:00:02]} 28. Rag1 {[%emt 0:00:54]} Rxg1 {[%emt 0:02:21]} 29. Rxg1+ {[%emt 0:00:02]} Kf6 {[%emt 0:00:50]} 30. Ra1 {[%emt 0:09:35]} Bd8 {[%emt 0:09:53]} 31. b4 {[%emt 0:00:56]} Ke7 {[%emt 0:02:36]} 32. Rh1 {[%emt 0:06:42]} b6 {[%emt 0:06:50]} 33. Rh7+ {[%emt 0:01:02]} Kf6 {[%emt 0:03:39]} 34. e3 {[%emt 0:01:36]} bxc5 {[%emt 0:01:14]} 35. bxc5 {[%emt 0:00:03]} Rb3 {[%emt 0:09:44]} 36. Ne2 {[%emt 0:03:07]} Be7 {[%emt 0:01:45]} 37. Nf4 {[%emt 0:01:09]} Bf8 {[%emt 0:00:41]} 38. Ra7 {[%emt 0:01:00]} Ra3 {[%emt 0:01:01]} 39. Rb7 {[%emt 0:04:02]} Bh6 {[%emt 0:03:24]} 40. Nxe6 {[%emt 0:01:27]} Bxe3 {[%emt 0:07:20]} 41. fxe3 {[%emt 0:00:05]} Kxe6 {[%emt 0:00:02]} 42. Kf4 {[%emt 0:00:09]} a5 {[%emt 0:01:01]} 43. Rb6+ {[%emt 0:12:15]} Ke7 {[%emt 0:02:36]} 44. Rd6 {[%emt 0:02:01]} Ra1 {[%emt 0:02:38]} 45. Kxf5 {[%emt 0:00:49]} a4 {[%emt 0:00:35]} 46. Ra6 {[%emt 0:00:14]} Ra3 {[%emt 0:04:36]} 47. Ra7+ {[%emt 0:02:07]} Ke8 {[%emt 0:01:48]} 48. Kf4 {[%emt 0:00:46]} Kf8 {[%emt 0:02:21]} 49. Ke5 {[%emt 0:03:03]} Rxe3+ {[%emt 0:00:22]} 50. Kxd5 {[%emt 0:00:02]} a3 {[%emt 0:00:22]} 51. Kd6 {[%emt 0:00:28]} Rh3 {[%emt 0:03:36]} 52. Ra8+ {[%emt 0:00:09]} Kf7 {[%emt 0:00:15]} 53. c6 {[%emt 0:00:29]} Rh6+ {[%emt 0:01:38]} 54. Kd7 {[%emt 0:00:25]} Rh4 {[%emt 0:01:39]} 55. d5 {[%emt 0:00:15]} Kf6 {[%emt 0:01:27]} 56. c7 {[%emt 0:01:14]} Rh7+ {[%emt 0:00:57]} 57. Kc6 {[%emt 0:00:11]} Ke7 {[%emt 0:01:09]} 58. c8=Q {[%emt 0:00:20]} Rh6+ {[%emt 0:00:29]} 59. Kc5 {[%emt 0:00:07]} a2 {[%emt 0:00:07]} 60. Qf8+ {[%emt 0:00:15]} 1-0

[Event "12th National Amateur Chess-ch 2025"]
[Site "Bihar"]
[Date "2025.03.28"]
[Round "7.15"]
[White "Vakcheri Mohitha"]
[Black "Arushi Severin Helen D Silva"]
[Result "0-1"]
[Annotator "NA RC"]
[ECO "E51"]
[WhiteElo "1778"]
[BlackElo "1746"]
[PlyCount "100"]
[EventDate "2025.03.25"]
[EventCountry "IND"]
[SourceTitle "playchess.com"]
[Source "ChessBase"]
[SourceQuality "1"]
[TimeControl "5400+30"]

1. d4 {[%emt 0:00:03]} Nf6 {[%emt 0:00:21]} 2. c4 {[%emt 0:00:06]} e6 {[%emt 0:00:05]} 3. Nc3 {[%emt 0:00:06]} Bb4 {[%emt 0:00:21]} 4. e3 {[%emt 0:00:06]} d5 {[%emt 0:01:04]} 5. Bd3 {[%emt 0:00:21]} O-O {[%emt 0:01:26]} 6. Nf3 {[%emt 0:00:05]} h6 {[%emt 0:02:07]} 7. O-O {[%emt 0:00:14]} Nbd7 {[%emt 0:01:52]} 8. a3 {[%emt 0:00:29]} Bxc3 {[%emt 0:01:13]} 9. bxc3 {[%emt 0:00:05]} b6 {[%emt 0:00:45]} 10. cxd5 {[%emt 0:00:24]} exd5 {[%emt 0:00:50]} 11. a4 {[%emt 0:12:49]} a5 {[%emt 0:02:50]} 12. Bb2 {[%emt 0:08:01]} Bb7 {[%emt 0:03:51]} 13. Ne5 {[%emt 0:05:01]} Nxe5 {[%emt 0:05:46]} 14. dxe5 {[%emt 0:00:15]} Nd7 {[%emt 0:00:06]} 15. f4 {[%emt 0:00:07]} Re8 {[%emt 0:01:02]} 16. Qg4 {[%emt 0:05:13]} Nc5 {[%emt 0:03:26]} 17. Bc2 {[%emt 0:00:40]} Qe7 {[%emt 0:03:09]} 18. Ba3 {[%emt 0:22:57]} Ba6 {[%emt 0:06:30]} 19. Rfd1 {[%emt 0:06:22]} Rad8 {[%emt 0:03:00]} 20. Qf5 {[%emt 0:03:32]} g6 {[%emt 0:01:42]} 21. Qg4 {[%emt 0:01:20]} Kg7 {[%emt 0:06:42]} 22. Kh1 {[%emt 0:10:30]} Qe6 {[%emt 0:03:17]} 23. f5 {[%emt 0:03:37]} Qxe5 {[%emt 0:00:40]} 24. fxg6 {[%emt 0:00:09]} f6 {[%emt 0:00:19]} 25. h3 {[%emt 0:08:06]} Bc8 {[%emt 0:08:50]} 26. Qh4 {[%emt 0:04:09]} Qg5 {[%emt 0:00:48]} 27. Qxg5 {[%emt 0:02:12]} hxg5 {[%emt 0:00:23]} 28. Re1 {[%emt 0:04:25]} Ne4 {[%emt 0:00:39]} 29. Bxe4 {[%emt 0:00:34]} Rxe4 {[%emt 0:00:06]} 30. Bc1 {[%emt 0:00:36]} Bd7 {[%emt 0:00:40]} 31. Bd2 {[%emt 0:00:50]} Bxa4 {[%emt 0:00:23]} 32. Kg1 {[%emt 0:00:32]} Kxg6 {[%emt 0:00:51]} 33. Kf2 {[%emt 0:00:06]} Bc6 {[%emt 0:00:17]} 34. Reb1 {[%emt 0:00:40]} a4 {[%emt 0:01:22]} 35. Ra3 {[%emt 0:00:06]} b5 {[%emt 0:00:30]} 36. Rb2 {[%emt 0:00:24]} Be8 {[%emt 0:00:31]} 37. Rb1 {[%emt 0:00:06]} c5 {[%emt 0:00:04]} 38. Rb2 {[%emt 0:00:11]} Rb8 {[%emt 0:01:18]} 39. Ra1 {[%emt 0:00:22]} b4 {[%emt 0:01:51]} 40. cxb4 {[%emt 0:00:05]} cxb4 {[%emt 0:00:04]} 41. Rab1 {[%emt 0:00:05]} b3 {[%emt 0:00:05]} 42. Bc3 {[%emt 0:00:19]} Rc4 {[%emt 0:00:19]} 43. Bd4 {[%emt 0:00:08]} Rbc8 {[%emt 0:00:05]} 44. Kg3 {[%emt 0:00:20]} Bd7 {[%emt 0:00:27]} 45. Rf1 {[%emt 0:02:04]} f5 {[%emt 0:00:11]} 46. Kf3 {[%emt 0:00:43]} Rc2 {[%emt 0:00:32]} 47. Rfb1 {[%emt 0:00:28]} Bb5 {[%emt 0:01:07]} 48. Kg3 {[%emt 0:00:21]} Bd3 {[%emt 0:00:59]} 49. Kf3 {[%emt 0:01:13]} Be4+ {[%emt 0:00:05]} 50. Kg3 {[%emt 0:00:04]} a3 {[%emt 0:00:14]} 0-1

[Event "12th National Amateur Chess-ch 2025"]
[Site "Bihar"]
[Date "2025.03.28"]
[Round "7.16"]
[White "Nivedita V C"]
[Black "Aamuktha Guntaka"]
[Result "1/2-1/2"]
[Annotator "RC"]
[ECO "E05"]
[WhiteElo "1950"]
[BlackElo "1910"]
[PlyCount "105"]
[EventDate "2025.03.25"]
[EventCountry "IND"]
[SourceTitle "playchess.com"]
[Source "ChessBase"]
[SourceQuality "1"]
[TimeControl "5400+30"]

1. d4 {[%emt 0:00:02]} Nf6 {[%emt 0:00:08]} 2. Nf3 {[%emt 0:00:14]} e6 {[%emt 0:01:17]} 3. g3 {[%emt 0:01:36]} Be7 {[%emt 0:05:11]} 4. c4 {[%emt 0:00:21]} d5 {[%emt 0:00:17]} 5. Bg2 {[%emt 0:00:04]} O-O {[%emt 0:00:06]} 6. O-O {[%emt 0:00:05]} dxc4 {[%emt 0:00:57]} 7. Qc2 {[%emt 0:00:05]} a6 {[%emt 0:02:44]} 8. a4 {[%emt 0:00:09]} Bd7 {[%emt 0:01:18]} 9. Qxc4 {[%emt 0:00:35]} Bc6 {[%emt 0:00:11]} 10. Nc3 {[%emt 0:00:12]} Nbd7 {[%emt 0:07:55]} 11. Bd2 {[%emt 0:09:36]} Ne4 {[%emt 0:13:04]} 12. Nxe4 {[%emt 0:03:20]} Bxe4 {[%emt 0:00:05]} 13. Rfc1 {[%emt 0:02:51]} c5 {[%emt 0:10:56]} 14. dxc5 {[%emt 0:21:12]} Bd5 {[%emt 0:08:15]} 15. Qg4 {[%emt 0:21:23]} f5 {[%emt 0:05:03]} 16. Qf4 {[%emt 0:07:48]} Nxc5 {[%emt 0:07:41]} 17. Bb4 {[%emt 0:04:42]} Bd6 {[%emt 0:12:10]} 18. Ne5 {[%emt 0:07:13]} Ne4 {[%emt 0:14:42]} 19. Bxd6 {[%emt 0:00:53]} Qxd6 {[%emt 0:00:09]} 20. Nd3 {[%emt 0:00:52]} Qxf4 {[%emt 0:00:27]} 21. Nxf4 {[%emt 0:00:08]} Rac8 {[%emt 0:01:06]} 22. Bxe4 {[%emt 0:01:01]} fxe4 {[%emt 0:00:39]} 23. e3 {[%emt 0:00:28]} Bc4 {[%emt 0:03:59]} 24. Ra3 {[%emt 0:02:44]} e5 {[%emt 0:01:49]} 25. Rac3 {[%emt 0:00:40]} exf4 {[%emt 0:01:24]} 26. Rxc4 {[%emt 0:00:02]} Rxc4 {[%emt 0:00:06]} 27. Rxc4 {[%emt 0:00:02]} fxe3 {[%emt 0:00:38]} 28. fxe3 {[%emt 0:00:02]} Rd8 {[%emt 0:00:17]} 29. b4 {[%emt 0:02:13]} b5 {[%emt 0:01:19]} 30. axb5 {[%emt 0:00:11]} axb5 {[%emt 0:00:04]} 31. Rxe4 {[%emt 0:00:07]} Rd2 {[%emt 0:00:44]} 32. Re5 {[%emt 0:00:10]} Rd3 {[%emt 0:01:03]} 33. Rxb5 {[%emt 0:00:47]} Rxe3 {[%emt 0:00:04]} 34. Rb7 {[%emt 0:01:25]} Re2 {[%emt 0:00:22]} 35. b5 {[%emt 0:01:57]} Rb2 {[%emt 0:00:18]} 36. Rb8+ {[%emt 0:03:25]} Kf7 {[%emt 0:00:06]} 37. b6 {[%emt 0:00:04]} Kg6 {[%emt 0:00:39]} 38. b7 {[%emt 0:00:04]} h6 {[%emt 0:00:56]} 39. Kf1 {[%emt 0:00:30]} h5 {[%emt 0:00:30]} 40. Ke1 {[%emt 0:00:44]} Kg5 {[%emt 0:00:30]} 41. h3 {[%emt 0:00:05]} Kg6 {[%emt 0:00:14]} 42. Kd1 {[%emt 0:01:03]} Kh7 {[%emt 0:00:13]} 43. Kc1 {[%emt 0:00:18]} Rb3 {[%emt 0:00:20]} 44. Kc2 {[%emt 0:00:05]} Rb4 {[%emt 0:00:12]} 45. Kc3 {[%emt 0:00:18]} Rb1 {[%emt 0:00:10]} 46. Kd4 {[%emt 0:00:11]} Rb2 {[%emt 0:00:30]} 47. Ke5 {[%emt 0:00:48]} Re2+ {[%emt 0:00:23]} 48. Kf5 {[%emt 0:01:25]} Rb2 {[%emt 0:00:14]} 49. Kg5 {[%emt 0:04:22]} Rb5+ {[%emt 0:00:07]} 50. Kf4 {[%emt 0:00:32]} Rb1 {[%emt 0:00:16]} 51. Ke5 {[%emt 0:03:01]} Re1+ {[%emt 0:00:26]} 52. Kf4 {[%emt 0:01:14]} Rb1 {[%emt 0:00:19]} 53. Ke4 {[%emt 0:00:41]} 1/2-1/2

[Event "12th National Amateur Chess-ch 2025"]
[Site "Bihar"]
[Date "2025.03.28"]
[Round "7.17"]
[White "Aayusree Sarkar"]
[Black "Maya Ameen"]
[Result "1/2-1/2"]
[Annotator "NA RC"]
[ECO "C54"]
[WhiteElo "1677"]
[BlackElo "1635"]
[PlyCount "66"]
[EventDate "2025.03.25"]
[EventCountry "IND"]
[SourceTitle "playchess.com"]
[Source "ChessBase"]
[SourceQuality "1"]
[TimeControl "5400+30"]

1. e4 {[%emt 0:00:07]} e5 {[%emt 0:00:05]} 2. Nf3 {[%emt 0:00:14]} Nc6 {[%emt 0:00:04]} 3. Bc4 {[%emt 0:00:15]} Bc5 {[%emt 0:00:05]} 4. c3 {[%emt 0:00:05]} Nf6 {[%emt 0:00:05]} 5. d4 {[%emt 0:00:29]} exd4 {[%emt 0:00:06]} 6. e5 {[%emt 0:00:21]} d5 {[%emt 0:00:04]} 7. Bb5 {[%emt 0:00:33]} Ne4 {[%emt 0:00:08]} 8. cxd4 {[%emt 0:00:09]} Bb6 {[%emt 0:00:08]} 9. Be3 {[%emt 0:03:46]} O-O {[%emt 0:03:36]} 10. Nbd2 {[%emt 0:02:17]} Nxd2 {[%emt 0:02:54]} 11. Nxd2 {[%emt 0:08:45]} Nxd4 {[%emt 0:01:07]} 12. Bd3 {[%emt 0:00:25]} Bf5 {[%emt 0:04:21]} 13. Bxf5 {[%emt 0:00:19]} Nxf5 {[%emt 0:00:05]} 14. Bxb6 {[%emt 0:00:09]} axb6 {[%emt 0:00:06]} 15. O-O {[%emt 0:00:34]} Nd4 {[%emt 0:04:41]} 16. f4 {[%emt 0:07:27]} f6 {[%emt 0:00:49]} 17. Nf3 {[%emt 0:01:56]} Nxf3+ {[%emt 0:00:38]} 18. Rxf3 {[%emt 0:00:05]} fxe5 {[%emt 0:00:14]} 19. fxe5 {[%emt 0:00:08]} c6 {[%emt 0:00:51]} 20. Qe2 {[%emt 0:06:28]} Rxf3 {[%emt 0:00:32]} 21. Qxf3 {[%emt 0:00:27]} Qe7 {[%emt 0:01:06]} 22. Re1 {[%emt 0:04:54]} Rxa2 {[%emt 0:02:42]} 23. e6 {[%emt 0:00:58]} Ra8 {[%emt 0:01:44]} 24. Qb3 {[%emt 0:01:44]} Qc5+ {[%emt 0:01:35]} 25. Kh1 {[%emt 0:00:26]} Re8 {[%emt 0:01:16]} 26. Qg3 {[%emt 0:01:08]} Qe7 {[%emt 0:01:43]} 27. h3 {[%emt 0:00:06]} b5 {[%emt 0:02:06]} 28. Qe5 {[%emt 0:00:47]} Rd8 {[%emt 0:03:29]} 29. Rf1 {[%emt 0:00:46]} Rf8 {[%emt 0:00:13]} 30. Rxf8+ {[%emt 0:01:33]} Qxf8 {[%emt 0:00:23]} 31. e7 {[%emt 0:00:13]} Qe8 {[%emt 0:00:46]} 32. Qe6+ {[%emt 0:00:05]} Kh8 {[%emt 0:00:04]} 33. Qd6 {[%emt 0:00:04]} Kg8 {[%emt 0:01:42]} 1/2-1/2

[Event "12th National Amateur Chess-ch 2025"]
[Site "Bihar"]
[Date "2025.03.28"]
[Round "7.18"]
[White "Kashvy Sabharwal"]
[Black "Harole Sara"]
[Result "1-0"]
[Annotator "NA RC"]
[ECO "D02"]
[WhiteElo "1640"]
[BlackElo "1509"]
[PlyCount "43"]
[EventDate "2025.03.25"]
[EventCountry "IND"]
[SourceTitle "playchess.com"]
[Source "ChessBase"]
[SourceQuality "1"]
[TimeControl "5400+30"]

1. d4 {[%emt 0:01:42]} Nf6 {[%emt 0:00:30]} 2. Bf4 {[%emt 0:00:19]} d5 {[%emt 0:02:35]} 3. Nf3 {[%emt 0:00:05]} Bf5 {[%emt 0:00:30]} 4. e3 {[%emt 0:00:10]} e6 {[%emt 0:00:30]} 5. Bd3 {[%emt 0:00:28]} Bg6 {[%emt 0:00:09]} 6. Ne5 {[%emt 0:00:06]} Nbd7 {[%emt 0:00:25]} 7. Nxg6 {[%emt 0:00:26]} hxg6 {[%emt 0:00:15]} 8. c3 {[%emt 0:01:13]} Nh5 {[%emt 0:17:02]} 9. Qg4 {[%emt 0:12:22]} Nxf4 {[%emt 0:00:53]} 10. exf4 {[%emt 0:00:31]} Nf6 {[%emt 0:00:27]} 11. Qe2 {[%emt 0:01:23]} c5 {[%emt 0:03:37]} 12. Nd2 {[%emt 0:00:30]} cxd4 {[%emt 0:00:30]} 13. cxd4 {[%emt 0:00:30]} Qb6 {[%emt 0:00:30]} 14. Nf3 {[%emt 0:00:30]} Bb4+ {[%emt 0:00:30]} 15. Kf1 {[%emt 0:00:30]} a6 {[%emt 0:00:30]} 16. g3 {[%emt 0:00:30]} Rc8 {[%emt 0:00:30]} 17. Kg2 {[%emt 0:00:30]} Nd7 {[%emt 0:00:30]} 18. Bc2 {[%emt 0:00:30]} O-O {[%emt 0:00:30]} 19. h4 {[%emt 0:00:30]} Rc7 {[%emt 0:00:30]} 20. h5 {[%emt 0:00:30]} gxh5 {[%emt 0:00:30]} 21. Ng5 {[%emt 0:00:30]} Rfc8 {[%emt 0:00:30]} 22. Qxh5 {[%emt 0:00:30]} 1-0

[Event "12th National Amateur Chess-ch 2025"]
[Site "Bihar"]
[Date "2025.03.29"]
[Round "8.1"]
[White "Ayaan Garg"]
[Black "Anadkat Kartavya"]
[Result "1/2-1/2"]
[Annotator "RC"]
[ECO "E24"]
[WhiteElo "1983"]
[BlackElo "2175"]
[PlyCount "42"]
[EventDate "2025.03.25"]
[EventCountry "IND"]
[SourceTitle "playchess.com"]
[Source "ChessBase"]
[SourceQuality "1"]
[TimeControl "5400+30"]

1. d4 {[%emt 0:04:21]} Nf6 {[%emt 0:01:50]} 2. c4 {[%emt 0:00:04]} e6 {[%emt 0:00:04]} 3. Nc3 {[%emt 0:00:04]} Bb4 {[%emt 0:00:28]} 4. f3 {[%emt 0:00:56]} c5 {[%emt 0:00:50]} 5. a3 {[%emt 0:00:00]} Bxc3+ {[%emt 0:00:36]} 6. bxc3 {[%emt 0:00:00]} d6 {[%emt 0:00:18]} 7. e4 {[%emt 0:00:00]} Nc6 {[%emt 0:00:45]} 8. Be3 {[%emt 0:00:20]} b6 {[%emt 0:01:39]} 9. Bd3 {[%emt 0:00:22]} Na5 {[%emt 0:00:50]} 10. Ne2 {[%emt 0:01:01]} Ba6 {[%emt 0:00:14]} 11. Ng3 {[%emt 0:01:05]} Qc7 {[%emt 0:12:22]} 12. Rc1 {[%emt 0:08:47]} O-O-O {[%emt 0:07:08]} 13. Qe2 {[%emt 0:04:27]} h5 {[%emt 0:03:43]} 14. Nf1 {[%emt 0:02:27]} h4 {[%emt 0:14:57]} 15. Nd2 {[%emt 0:00:59]} e5 {[%emt 0:06:32]} 16. O-O {[%emt 0:13:15]} Kb8 {[%emt 0:04:42]} 17. Kh1 {[%emt 0:02:23]} Ka8 {[%emt 0:00:02]} 18. Kg1 {[%emt 0:00:04]} Kb8 {[%emt 0:00:05]} 19. Kh1 {[%emt 0:00:03]} Ka8 {[%emt 0:00:05]} 20. Kg1 {[%emt 0:00:03]} Kb8 {[%emt 0:00:03]} 21. Kh1 {[%emt 0:00:05]} Ka8 {[%emt 0:00:35]} 1/2-1/2

[Event "12th National Amateur Chess-ch 2025"]
[Site "Bihar"]
[Date "2025.03.29"]
[Round "8.2"]
[White "Utkrisht Tuli"]
[Black "Vidit Sethi"]
[Result "1-0"]
[Annotator "RC"]
[ECO "D14"]
[WhiteElo "2020"]
[BlackElo "1832"]
[PlyCount "116"]
[EventDate "2025.03.25"]
[EventCountry "IND"]
[SourceTitle "playchess.com"]
[Source "ChessBase"]
[SourceQuality "1"]
[TimeControl "5400+30"]

1. d4 {[%emt 0:01:52]} d5 {[%emt 0:00:05]} 2. c4 {[%emt 0:00:07]} c6 {[%emt 0:00:03]} 3. Nf3 {[%emt 0:00:14]} Nf6 {[%emt 0:00:05]} 4. cxd5 {[%emt 0:00:05]} cxd5 {[%emt 0:00:10]} 5. Nc3 {[%emt 0:00:05]} Nc6 {[%emt 0:00:23]} 6. Bf4 {[%emt 0:00:13]} Bf5 {[%emt 0:00:55]} 7. Qb3 {[%emt 0:00:10]} Na5 {[%emt 0:00:17]} 8. Qa4+ {[%emt 0:00:06]} Bd7 {[%emt 0:00:21]} 9. Qc2 {[%emt 0:00:11]} e6 {[%emt 0:00:12]} 10. e3 {[%emt 0:00:49]} Rc8 {[%emt 0:00:14]} 11. Bd3 {[%emt 0:03:28]} Nc4 {[%emt 0:02:57]} 12. O-O {[%emt 0:10:07]} Bb4 {[%emt 0:00:14]} 13. Rac1 {[%emt 0:07:42]} O-O {[%emt 0:02:13]} 14. Qb1 {[%emt 0:06:45]} h6 {[%emt 0:00:38]} 15. h3 {[%emt 0:10:04]} Qa5 {[%emt 0:02:10]} 16. Bxc4 {[%emt 0:04:48]} Rxc4 {[%emt 0:00:30]} 17. Ne5 {[%emt 0:01:07]} Rcc8 {[%emt 0:00:19]} 18. Nxd7 {[%emt 0:02:50]} Nxd7 {[%emt 0:00:14]} 19. Ne2 {[%emt 0:02:01]} Qb5 {[%emt 0:17:55]} 20. Rc2 {[%emt 0:06:13]} Rc4 {[%emt 0:04:08]} 21. Rfc1 {[%emt 0:01:22]} Rfc8 {[%emt 0:00:11]} 22. b3 {[%emt 0:00:34]} R4c6 {[%emt 0:00:19]} 23. Rxc6 {[%emt 0:01:15]} Rxc6 {[%emt 0:00:11]} 24. Rxc6 {[%emt 0:00:05]} Qxc6 {[%emt 0:04:01]} 25. Qc1 {[%emt 0:00:37]} Be7 {[%emt 0:08:39]} 26. Qxc6 {[%emt 0:00:24]} bxc6 {[%emt 0:00:07]} 27. Kf1 {[%emt 0:02:59]} c5 {[%emt 0:03:06]} 28. Bc7 {[%emt 0:00:00]} Kf8 {[%emt 0:02:41]} 29. Ke1 {[%emt 0:00:00]} Ke8 {[%emt 0:01:13]} 30. Kd2 {[%emt 0:00:35]} Bd8 {[%emt 0:04:54]} 31. Bxd8 {[%emt 0:01:20]} Kxd8 {[%emt 0:00:10]} 32. Nf4 {[%emt 0:00:55]} Kc7 {[%emt 0:02:55]} 33. Nd3 {[%emt 0:00:44]} cxd4 {[%emt 0:00:31]} 34. exd4 {[%emt 0:00:02]} Kd6 {[%emt 0:00:36]} 35. f3 {[%emt 0:00:46]} f6 {[%emt 0:00:25]} 36. a3 {[%emt 0:03:11]} g5 {[%emt 0:00:25]} 37. g3 {[%emt 0:00:51]} e5 {[%emt 0:00:59]} 38. Ke3 {[%emt 0:00:15]} a5 {[%emt 0:04:21]} 39. Nf2 {[%emt 0:03:11]} h5 {[%emt 0:03:31]} 40. Nd3 {[%emt 0:02:28]} h4 {[%emt 0:16:16]} 41. gxh4 {[%emt 0:01:59]} gxh4 {[%emt 0:00:03]} 42. f4 {[%emt 0:00:29]} exd4+ {[%emt 0:03:19]} 43. Kxd4 {[%emt 0:00:09]} Nb8 {[%emt 0:00:15]} 44. Ne1 {[%emt 0:01:38]} Nc6+ {[%emt 0:00:05]} 45. Kd3 {[%emt 0:00:08]} Nd8 {[%emt 0:12:01]} 46. Nf3 {[%emt 0:01:10]} Ne6 {[%emt 0:00:13]} 47. Ke3 {[%emt 0:00:38]} Kc5 {[%emt 0:03:39]} 48. Nxh4 {[%emt 0:00:31]} d4+ {[%emt 0:00:11]} 49. Ke4 {[%emt 0:00:11]} d3 {[%emt 0:00:46]} 50. Nf3 {[%emt 0:00:23]} f5+ {[%emt 0:00:19]} 51. Ke3 {[%emt 0:00:33]} a4 {[%emt 0:00:51]} 52. bxa4 {[%emt 0:00:54]} Nc7 {[%emt 0:00:57]} 53. Ne5 {[%emt 0:00:50]} d2 {[%emt 0:00:24]} 54. Kxd2 {[%emt 0:00:03]} Kd4 {[%emt 0:00:17]} 55. Nd3 {[%emt 0:00:17]} Ne8 {[%emt 0:00:57]} 56. h4 {[%emt 0:00:08]} Nf6 {[%emt 0:00:20]} 57. a5 {[%emt 0:00:04]} Ne4+ {[%emt 0:00:08]} 58. Kc2 {[%emt 0:00:06]} Kd5 {[%emt 0:00:22]} 1-0